fUSD/lending_fUSD_20241104
["ID","MTS","AMOUNT","RATE_DAILY","PERIOD"]
[341280807,1730740274210,-500.0,0.00035515,2]
[341280808,1730740274219,-500.0,0.00035515,2]
[341280809,1730740274229,-500.0,0.00035515,2]
[341280810,1730740274238,-500.0,0.00035515,2]
[341280811,1730740274248,-500.0,0.00035515,2]
[341280812,1730740274257,-455.40349682,0.00035515,2]
[341280813,1730740274518,-44.59650318,0.00035515,2]
[341280814,1730740274528,-500.0,0.00035515,2]
[341280815,1730740274538,-500.0,0.00035515,2]
[341280816,1730740274549,-2000.0,0.00035515,2]
[341280817,1730740274559,-500.0,0.00035515,2]
[341280818,1730740274568,-500.0,0.00035515,2]
[341280819,1730740274578,-15.35165048,0.00035515,2]
[341280820,1730740274591,-484.64834952,0.00035515,2]
[341280821,1730740274601,-500.0,0.00035515,2]
[341280822,1730740274611,-500.0,0.00035515,2]
[341280823,1730740274620,-500.0,0.00035515,2]
[341280824,1730740274629,-432.38097787,0.00035515,2]
[341280825,1730740274640,-67.61902213,0.00035515,2]
[341280826,1730740274649,-500.0,0.00035515,2]
[341280827,1730740274658,-21.89900762,0.00035515,2]
[341280828,1730740274678,-500.0,0.00035341,2]
[341280829,1730740274687,-478.10099238,0.00035515,2]
[341280830,1730740274697,-500.0,0.00035515,2]
[341280831,1730740274706,-500.0,0.00035515,2]
[341280832,1730740274715,-500.0,0.00035515,2]
[341280833,1730740274725,-500.0,0.00035515,2]
[341280834,1730740274734,-500.0,0.00035515,2]
[341280835,1730740274744,-500.0,0.00035515,2]
[341280836,1730740274754,-500.0,0.00035515,2]
[341280837,1730740274763,-536.2,0.00035515,2]
[341280838,1730740274772,-500.0,0.00035515,2]
[341280839,1730740274781,-500.0,0.00035515,2]
[341280840,1730740274790,-500.0,0.00035515,2]
[341280841,1730740274800,-500.0,0.00035515,2]
[341280842,1730740274809,-500.0,0.00035515,2]
[341280843,1730740274818,-656.93605744,0.00035516,2]
[341280844,1730740274827,-1000.0,0.00035516,2]
[341280845,1730740274836,-1000.0,0.00035516,2]
[341280846,1730740274845,-2000.0,0.00035516,2]
[341280847,1730740274854,-200.0,0.00035516,2]
[341280848,1730740274864,-611.42,0.00035615,2]
[341280849,1730740274873,-611.42,0.00035615,2]
[341280850,1730740274882,-1297.84,0.00035615,2]
[341280851,1730740274891,-826.67,0.00035615,2]
[341280852,1730740274901,-500.0,0.00035615,2]
[341280853,1730740274910,-500.0,0.00035615,2]
[341280854,1730740274919,-500.0,0.00035615,2]
[341280855,1730740274930,-500.0,0.00035615,2]
[341280856,1730740274939,-159.51,0.00035615,2]
[341280857,1730740274949,-500.0,0.00035615,2]
[341280858,1730740274959,-500.0,0.00035615,2]
[341280859,1730740274968,-500.0,0.00035615,2]
[341280860,1730740274978,-500.0,0.00035615,2]
[341280861,1730740274988,-488.72,0.00035615,2]
[341280862,1730740274997,-638.88,0.00035615,2]
[341280863,1730740275006,-500.0,0.00035615,2]
[341280864,1730740275015,-500.0,0.00035615,2]
[341280865,1730740275025,-500.0,0.00035615,2]
[341280866,1730740275034,-500.0,0.00035615,2]
[341280867,1730740275043,-500.0,0.00035615,2]
[341280868,1730740275052,-500.0,0.00035615,2]
[341280869,1730740275062,-742.97,0.00035615,2]
[341280870,1730740275072,-500.0,0.00035615,2]
[341280871,1730740275081,-588.02,0.00035615,2]
[341280872,1730740275091,-684.77,0.00035615,2]
[341280873,1730740275100,-5190.93,0.00035615,2]
[341280874,1730740275114,-1333.28,0.00035615,2]
[341280875,1730740275123,-500.0,0.00035615,2]
[341280876,1730740275132,-500.0,0.00035615,2]
[341280877,1730740275143,-215.45496068,0.00035615,2]
[341280878,1730740275152,-500.0,0.00035615,2]
[341280879,1730740275162,-512.5,0.00035615,2]
[341280880,1730740275172,-2148.52,0.00035615,2]
[341280881,1730740275186,-500.0,0.00035615,2]
[341280882,1730740275196,-1134.55,0.00035615,2]
[341280883,1730740275206,-500.0,0.00035615,2]
[341280884,1730740275216,-911.98,0.00035615,2]
[341280885,1730740275226,-500.0,0.00035615,2]
[341280886,1730740275237,-500.0,0.00035615,2]
[341280887,1730740275247,-500.0,0.00035615,2]
[341280888,1730740275257,-500.0,0.00035616,2]
[341280889,1730740275267,-500.0,0.00035616,2]
[341280890,1730740275278,-42.1251195,0.00035616,2]
[341280891,1730740275304,-457.8748805,0.00035616,2]
[341280892,1730740275314,-500.0,0.00035616,2]
[341280893,1730740275323,-500.0,0.00035616,2]
[341280894,1730740275333,-500.0,0.00035616,2]
[341280895,1730740275342,-500.0,0.00035616,2]
[341280896,1730740275352,-623.99,0.00035616,2]
[341280897,1730740275362,-1022.37,0.00035616,2]
[341280898,1730740275371,-548.25,0.00035616,2]
[341280899,1730740275381,-500.0,0.00035616,2]
[341280900,1730740275390,-500.0,0.00035616,2]
[341280901,1730740275399,-2165.69,0.00035616,2]
[341280902,1730740275409,-1493.51,0.00035616,120]
[341280903,1730740275418,-649.19,0.00035616,2]
[341280904,1730740275429,-583.25,0.00035616,2]
[341280905,1730740275438,-610.43,0.00035616,2]
[341280906,1730740275447,-626.62,0.00035616,2]
[341280907,1730740275457,-1000.0,0.00035616,2]
[341280908,1730740275466,-1000.0,0.00035616,2]
[341280909,1730740275476,-1040.08,0.00035616,2]
[341280910,1730740275486,-500.0,0.00035616,2]
[341280911,1730740275496,-500.0,0.00035616,2]
[341280912,1730740275507,-973.83,0.00035616,2]
[341280913,1730740275519,-2718.58,0.00035616,2]
[341280914,1730740275529,-694.09,0.00035616,2]
[341280915,1730740275539,-962.3,0.00035616,2]
[341280916,1730740275549,-603.31,0.00035616,2]
[341280917,1730740275559,-500.0,0.00035616,2]
[341280918,1730740275665,-1262.3,0.00035616,2]
[341280919,1730740275676,-359.35030053,0.00035616,2]
[341280920,1730740275686,-500.0,0.00035616,2]
[341280921,1730740275694,-500.0,0.00035616,2]
[341280922,1730740275703,-1323.98,0.00035616,2]
[341280923,1730740275712,-500.0,0.00035616,2]
[341280924,1730740275722,-3246.91,0.00035616,2]
[341280925,1730740275731,-500.0,0.00035616,2]
[341280926,1730740275740,-500.0,0.00035616,2]
[341280927,1730740275750,-794.28,0.00035616,2]
[341280928,1730740275759,-766.93,0.00035616,2]
[341280929,1730740275768,-583.15,0.00035616,2]
[341280930,1730740275778,-500.0,0.00035616,2]
[341280931,1730740275787,-500.0,0.00035616,2]
[341280932,1730740275796,-158.44,0.00035616,2]
[341280933,1730740275806,-155.86,0.00035616,2]
[341280934,1730740275815,-500.0,0.00035789,2]
[341280935,1730740275824,-500.0,0.00035789,2]
[341280936,1730740275834,-500.0,0.00035789,2]
[341280937,1730740275843,-500.0,0.00035789,2]
[341280938,1730740275853,-500.0,0.00035789,2]
[341280939,1730740275862,-500.0,0.00035789,2]
[341280940,1730740275871,-591.11,0.00035789,2]
[341280941,1730740275881,-500.0,0.00035789,2]
[341280942,1730740275890,-500.0,0.00035789,2]
[341280943,1730740275899,-500.0,0.00035789,2]
[341280944,1730740275908,-500.0,0.00035789,2]
[341280945,1730740275918,-520.54,0.00035789,2]
[341280946,1730740275929,-500.0,0.00035789,2]
[341280947,1730740275938,-500.0,0.00035789,2]
[341280948,1730740275947,-500.0,0.00035789,2]
[341280949,1730740275956,-500.0,0.00035789,2]
[341280950,1730740275966,-244.22,0.00035789,2]
[341280951,1730740275976,-500.0,0.00035789,2]
[341280952,1730740275985,-500.0,0.00035789,2]
[341280953,1730740275994,-500.0,0.00035789,2]
[341280954,1730740276004,-500.0,0.00035789,2]
[341280955,1730740276013,-500.0,0.00035789,2]
[341280956,1730740276023,-500.0,0.00035789,2]
[341280957,1730740276032,-500.0,0.00035789,2]
[341280958,1730740276042,-540.83542868,0.00035789,2]
[341280959,1730740276051,-500.0,0.00035789,2]
[341280960,1730740276060,-500.0,0.00035789,2]
[341280961,1730740276070,-500.0,0.00035789,2]
[341280962,1730740276079,-500.0,0.00035789,2]
[341280963,1730740276089,-500.0,0.00035789,2]
[341280964,1730740276098,-500.0,0.00035789,2]
[341280965,1730740276111,-214.24601758,0.00035789,2]
[341280966,1730740276121,-500.0,0.00035789,2]
[341280967,1730740276130,-500.0,0.00035789,2]
[341280968,1730740276140,-500.0,0.00035789,2]
[341280969,1730740276150,-500.0,0.00035789,2]
[341280970,1730740276160,-500.0,0.00035789,2]
[341280971,1730740276169,-500.0,0.00035789,2]
[341280972,1730740276181,-500.0,0.00035789,2]
[341280973,1730740276190,-617.39,0.00035789,2]
[341280974,1730740276200,-589.28,0.00035789,2]
[341280975,1730740276209,-457.32,0.00035789,2]
[341280976,1730740276218,-630.50877414,0.00035789,2]
[341280977,1730740276227,-500.0,0.00035789,2]
[341280978,1730740276237,-500.0,0.00035789,2]
[341280979,1730740276246,-500.0,0.00035789,2]
[341280980,1730740276255,-500.0,0.00035789,2]
[341280981,1730740276264,-500.0,0.00035789,2]
[341280982,1730740276273,-198.23723558,0.00035789,2]
[341280983,1730740276282,-500.0,0.00035789,2]
[341280984,1730740276291,-1598.16,0.00035789,2]
[341280985,1730740276301,-500.0,0.00035789,2]
[341280986,1730740276311,-500.0,0.00035789,2]
[341280987,1730740276321,-500.0,0.00035789,2]
[341280988,1730740276330,-500.0,0.00035789,2]
[341280989,1730740276339,-500.0,0.00035789,2]
[341280990,1730740276352,-500.0,0.00035789,2]
[341280991,1730740276374,-740.06,0.00035789,2]
[341280992,1730740276392,-665.74,0.00035789,2]
[341280993,1730740276413,-500.0,0.00035789,2]
[341280994,1730740276433,-500.0,0.00035789,2]
[341280995,1730740276450,-500.0,0.00035789,2]
[341280996,1730740276469,-500.0,0.00035789,2]
[341280997,1730740276485,-500.0,0.00035789,2]
[341280998,1730740276501,-268.15173062,0.00035789,2]
[341280999,1730740276519,-500.0,0.00035789,2]
[341281000,1730740276539,-500.0,0.00035789,2]
[341281001,1730740276552,-500.0,0.00035789,2]
[341281002,1730740276569,-500.0,0.00035789,2]
[341281003,1730740276587,-500.0,0.00035789,2]
[341281004,1730740276601,-500.0,0.00035789,2]
[341281005,1730740276615,-500.0,0.00035789,2]
[341281006,1730740276628,-500.0,0.00035789,2]
[341281007,1730740276644,-500.0,0.00035789,2]
[341281008,1730740276657,-500.0,0.00035789,2]
[341281009,1730740276671,-500.0,0.00035789,2]
[341281010,1730740276687,-500.0,0.00035789,2]
[341281011,1730740276701,-500.0,0.00035789,2]
[341281012,1730740276715,-1000.0,0.00035789,2]
[341281013,1730740276729,-500.0,0.00035789,2]
[341281014,1730740276744,-500.0,0.00035789,2]
[341281015,1730740276759,-500.0,0.00035789,2]
[341281016,1730740276772,-500.0,0.00035789,2]
[341281017,1730740276787,-500.0,0.00035789,2]
[341281018,1730740276801,-500.0,0.00035789,2]
[341281019,1730740276815,-500.0,0.00035789,2]
[341281020,1730740276829,-500.0,0.00035789,2]
[341281021,1730740276843,-578.6417737,0.00035789,2]
[341281022,1730740276858,-500.0,0.00035789,2]
[341281023,1730740276868,-500.0,0.00035789,2]
[341281024,1730740276877,-500.0,0.00035789,2]
[341281025,1730740276886,-500.0,0.00035789,2]
[341281026,1730740276896,-500.0,0.00035789,2]
[341281027,1730740276905,-500.0,0.00035789,2]
[341281028,1730740276914,-500.0,0.00035789,2]
[341281029,1730740276923,-500.0,0.00035789,2]
[341281030,1730740276935,-500.0,0.00035789,2]
[341281031,1730740276944,-500.0,0.00035789,2]
[341281032,1730740276953,-207.93525,0.00035789,7]
[341281033,1730740276962,-157.399859,0.00035789,7]
[341281034,1730740276972,-157.399859,0.00035789,7]
[341281035,1730740276981,-2000.0,0.00035871,2]
[341281036,1730740276991,-200.0,0.00035871,2]
[341281037,1730740277000,-611.42,0.00035889,2]
[341281038,1730740277009,-1297.84,0.00035889,2]
[341281039,1730740277018,-826.67,0.00035889,2]
[341281040,1730740277028,-500.0,0.00035889,2]
[341281041,1730740277037,-578.45539377,0.00035889,2]
[341281042,1730740277046,-500.0,0.00035889,2]
[341281043,1730740277056,-500.0,0.00035889,2]
[341281044,1730740277065,-159.51,0.00035889,2]
[341281045,1730740277075,-500.0,0.00035889,2]
[341281046,1730740277084,-500.0,0.00035889,2]
[341281047,1730740277094,-500.0,0.00035889,2]
[341281048,1730740277107,-638.88,0.00035889,2]
[341281049,1730740277117,-500.0,0.00035889,2]
[341281050,1730740277127,-500.0,0.00035889,2]
[341281051,1730740277136,-500.0,0.00035889,2]
[341281052,1730740277146,-500.0,0.00035889,2]
[341281053,1730740277155,-500.0,0.00035889,2]
[341281054,1730740277165,-742.97,0.00035889,2]
[341281055,1730740277176,-500.0,0.00035889,2]
[341281056,1730740277187,-588.02,0.00035889,2]
[341281057,1730740277196,-684.77,0.00035889,2]
[341281058,1730740277205,-5190.93,0.00035889,2]
[341281059,1730740277214,-1333.28,0.00035889,2]
[341281060,1730740277223,-500.0,0.00035889,2]
[341281061,1730740277233,-372.4448042,0.00035889,2]
[341281062,1730740277242,-500.0,0.00035889,2]
[341281063,1730740277588,-512.5,0.00035889,2]
[341281064,1730740277604,-2148.52,0.00035889,2]
[341281065,1730740277618,-500.0,0.00035889,2]
[341281066,1730740277628,-1134.55,0.00035889,2]
[341281067,1730740277638,-500.0,0.00035889,2]
[341281068,1730740277650,-911.98,0.00035889,2]
[341281069,1730740277660,-500.0,0.00035889,2]
[341281070,1730740277670,-500.0,0.00035889,2]
[341281071,1730740277681,-500.0,0.00035889,2]
[341281072,1730740277691,-500.0,0.0003589,2]
[341281073,1730740277700,-500.0,0.0003589,2]
[341281074,1730740277710,-500.0,0.0003589,2]
[341281075,1730740277720,-500.0,0.0003589,2]
[341281076,1730740277732,-500.0,0.0003589,2]
[341281077,1730740277744,-623.99,0.0003589,2]
[341281078,1730740277754,-1022.37,0.0003589,2]
[341281079,1730740277765,-548.25,0.0003589,2]
[341281080,1730740277775,-500.0,0.0003589,2]
[341281081,1730740277785,-156.482156,0.0003589,2]
[341281082,1730740277795,-500.0,0.0003589,2]
[341281083,1730740277806,-2165.69,0.0003589,2]
[341281084,1730740277817,-649.19,0.0003589,2]
[341281085,1730740277830,-583.25,0.0003589,2]
[341281086,1730740277840,-610.43,0.0003589,2]
[341281087,1730740277850,-626.62,0.0003589,2]
[341281088,1730740277860,-500.0,0.0003589,2]
[341281089,1730740277871,-500.0,0.0003589,2]
[341281090,1730740277882,-973.83,0.0003589,2]
[341281091,1730740277891,-2718.58,0.0003589,2]
[341281092,1730740277900,-694.09,0.0003589,2]
[341281093,1730740277909,-962.3,0.0003589,2]
[341281094,1730740277919,-603.31,0.0003589,2]
[341281095,1730740277929,-500.0,0.0003589,2]
[341281096,1730740277938,-1262.3,0.0003589,2]
[341281097,1730740277947,-151.0,0.0003589,7]
[341281098,1730740277958,-151.0,0.0003589,7]
[341281099,1730740277968,-151.0,0.0003589,7]
[341281100,1730740277979,-500.0,0.0003589,2]
[341281101,1730740277988,-500.0,0.0003589,2]
[341281102,1730740277997,-1323.98,0.0003589,2]
[341281103,1730740278006,-500.0,0.0003589,2]
[341281104,1730740278016,-3246.91,0.0003589,2]
[341281105,1730740278025,-500.0,0.0003589,2]
[341281106,1730740278034,-500.0,0.0003589,2]
[341281107,1730740278044,-794.28,0.0003589,2]
[341281108,1730740278054,-766.93,0.0003589,2]
[341281109,1730740278063,-583.15,0.0003589,2]
[341281110,1730740278072,-500.0,0.0003589,2]
[341281111,1730740278082,-500.0,0.0003589,2]
[341281112,1730740278092,-150.83,0.000359,30]
[341281113,1730740278105,-3100.0,0.000359,13]
[341281114,1730740278115,-504.09458127,0.00035922,30]
[341281115,1730740278124,-2914.27840626,0.00035963,2]
[341281116,1730740278615,-350.40767878,0.00032876,2]
[341281117,1730740278637,-149.59232122,0.00032876,2]
[341281118,1730740278646,-320.10067878,0.00032876,2]
[341281119,1730740278658,-179.89932122,0.00032876,2]
[341281120,1730740278667,-500.0,0.00032876,2]
[341281121,1730740278677,-500.0,0.00032876,2]
[341281122,1730740278686,-77.65067878,0.00032876,2]
[341281123,1730740278697,-422.34932122,0.00032876,2]
[341281124,1730740278707,-500.0,0.00033149,2]
[341281125,1730740278716,-440.68065817,0.00033149,2]
[341281126,1730740278727,-59.31934183,0.00033149,2]
[341281127,1730740278736,-500.0,0.00033149,2]
[341281128,1730740278746,-500.0,0.00033149,2]
[341281129,1730740278755,-500.0,0.0003315,2]
[341281130,1730740278764,-500.0,0.0003315,2]
[341281131,1730740278773,-500.0,0.0003315,2]
[341281132,1730740278783,-500.0,0.0003315,2]
[341281133,1730740278792,-500.0,0.0003315,2]
[341281134,1730740278801,-500.0,0.00033173,5]
[341281135,1730740278810,-500.0,0.00033423,2]
[341281136,1730740278819,-500.0,0.00033423,2]
[341281137,1730740278829,-500.0,0.00033423,2]
[341281138,1730740278838,-500.0,0.00033423,2]
[341281139,1730740278848,-500.0,0.00033424,2]
[341281140,1730740278857,-202.47247817,0.00033424,2]
[341281141,1730740278868,-293.86118722,0.00033424,2]
[341281142,1730740278879,-3.66633461,0.00033424,2]
[341281143,1730740278889,-500.0,0.00033424,2]
[341281144,1730740278898,-112.41032279,0.00033424,2]
[341281145,1730740278909,-247.68967721,0.00033424,2]
[341281146,1730740278918,-352.81032279,0.00033697,2]
[341281147,1730740278942,-500.0,0.00033149,2]
[341281148,1730740278952,-147.18967721,0.00033697,2]
[341281149,1730740278962,-187.93369553,0.00033697,2]
[341281150,1730740278971,-515.3599454,0.00033697,2]
[341281151,1730740278981,-500.0,0.00033698,2]
[341281152,1730740278990,-500.0,0.00033698,2]
[341281153,1730740279000,-283.85,0.00033698,2]
[341281154,1730740279009,-500.0,0.00033972,2]
[341281155,1730740279019,-257.58,0.00033972,2]
[341281156,1730740279029,-500.0,0.00034246,2]
[341281157,1730740279038,-500.0,0.0003452,2]
[341281158,1730740279047,-1000.0,0.00034542,5]
[341281159,1730740279057,-500.0,0.00034794,2]
[341281160,1730740279067,-500.0,0.00035068,2]
[341281161,1730740279076,-500.0,0.00035342,2]
[341281162,1730740279085,-500.0,0.00035615,2]
[341281163,1730740279094,-619.65434547,0.00035616,2]
[341281164,1730740279105,-500.0,0.00035889,2]
[341281165,1730740279116,-2175.85282106,0.00035963,2]
[341281166,1730740279125,-627.903,0.00035995,43]
[341281167,1730740279134,-175.634,0.00035995,43]
[341281168,1730740279144,-899.999999,0.00036,37]
[341281169,1730740279153,-5590.96060458,0.00036,7]
[341281170,1730740279162,-250.0,0.00036,30]
[341281171,1730740279172,-500.0,0.00036062,2]
[341281172,1730740279184,-500.0,0.00036063,2]
[341281173,1730740279193,-500.0,0.00036063,2]
[341281174,1730740279202,-500.0,0.00036063,2]
[341281175,1730740279211,-500.0,0.00036063,2]
[341281176,1730740279221,-500.0,0.00036063,2]
[341281177,1730740279231,-591.11,0.00036063,2]
[341281178,1730740279240,-500.0,0.00036063,2]
[341281179,1730740279249,-500.0,0.00036063,2]
[341281180,1730740279258,-168.27,0.00036063,2]
[341281181,1730740279267,-500.0,0.00036063,2]
[341281182,1730740279276,-487.21,0.00036063,2]
[341281183,1730740279285,-500.0,0.00036063,2]
[341281184,1730740279294,-181.15,0.00036063,2]
[341281185,1730740279303,-169.97781195,0.00036063,2]
[341281186,1730740279312,-500.0,0.00036063,2]
[341281187,1730740279321,-307.93,0.00036063,2]
[341281188,1730740279330,-500.0,0.00036063,2]
[341281189,1730740279340,-325.9827899,0.00036063,2]
[341281190,1730740279349,-195.82,0.00036063,2]
[341281191,1730740279358,-179.64,0.00036063,2]
[341281192,1730740279367,-500.0,0.00036063,2]
[341281193,1730740279376,-500.0,0.00036063,2]
[341281194,1730740279385,-500.0,0.00036063,2]
[341281195,1730740279394,-500.0,0.00036063,2]
[341281196,1730740279404,-392.91,0.00036063,2]
[341281197,1730740279413,-500.0,0.00036063,2]
[341281198,1730740279422,-500.0,0.00036063,2]
[341281199,1730740279432,-541.58,0.00036063,2]
[341281200,1730740279441,-500.0,0.00036063,2]
[341281201,1730740279450,-500.0,0.00036063,2]
[341281202,1730740279459,-155.27,0.00036063,2]
[341281203,1730740279468,-500.0,0.00036063,2]
[341281204,1730740279477,-500.0,0.00036063,2]
[341281205,1730740279487,-327.22971414,0.00036063,2]
[341281206,1730740279496,-500.0,0.00036063,2]
[341281207,1730740279505,-500.0,0.00036063,2]
[341281208,1730740279514,-1598.16,0.00036063,2]
[341281209,1730740279523,-500.0,0.00036063,2]
[341281210,1730740279533,-500.0,0.00036063,2]
[341281211,1730740279542,-500.0,0.00036063,2]
[341281212,1730740279552,-740.06,0.00036063,2]
[341281213,1730740279562,-665.74,0.00036063,2]
[341281214,1730740279572,-500.0,0.00036063,2]
[341281215,1730740279582,-500.0,0.00036063,2]
[341281216,1730740279592,-315.17,0.00036063,2]
[341281217,1730740279602,-500.0,0.00036063,2]
[341281218,1730740279611,-500.0,0.00036063,2]
[341281219,1730740279621,-500.0,0.00036063,2]
[341281220,1730740279631,-500.0,0.00036063,2]
[341281221,1730740279641,-500.0,0.00036063,2]
[341281222,1730740279651,-500.0,0.00036063,2]
[341281223,1730740279660,-500.0,0.00036063,2]
[341281224,1730740279670,-500.0,0.00036063,2]
[341281225,1730740279680,-500.0,0.00036063,2]
[341281226,1730740279690,-500.0,0.00036063,2]
[341281227,1730740279700,-500.0,0.00036063,2]
[341281228,1730740279709,-500.0,0.00036063,2]
[341281229,1730740279718,-500.0,0.00036063,2]
[341281230,1730740279728,-500.0,0.00036063,2]
[341281231,1730740279737,-500.0,0.00036063,2]
[341281232,1730740279746,-500.0,0.00036063,2]
[341281233,1730740279756,-500.0,0.00036063,2]
[341281234,1730740279766,-500.0,0.00036063,2]
[341281235,1730740279775,-403.94,0.00036063,2]
[341281236,1730740279784,-317.1,0.00036063,2]
[341281237,1730740279794,-500.0,0.00036063,2]
[341281238,1730740279804,-234.55776517,0.00036063,2]
[341281239,1730740279813,-500.0,0.00036063,2]
[341281240,1730740279823,-500.0,0.00036063,2]
[341281241,1730740279832,-500.0,0.00036063,2]
[341281242,1730740279841,-500.0,0.00036063,2]
[341281243,1730740279850,-500.0,0.00036063,2]
[341281244,1730740279860,-500.0,0.00036063,2]
[341281245,1730740279869,-500.0,0.00036063,2]
[341281246,1730740279878,-151.0,0.00036063,7]
[341281247,1730740279889,-826.110308,0.00036063,7]
[341281248,1730740279898,-826.110308,0.00036063,7]
[341281249,1730740279908,-6262.36272832,0.00036063,2]
[341281250,1730740279918,-611.42,0.00036163,2]
[341281251,1730740279929,-500.0,0.00036163,2]
[341281252,1730740279939,-500.0,0.00036163,2]
[341281253,1730740279948,-159.51,0.00036163,2]
[341281254,1730740279958,-500.0,0.00036163,2]
[341281255,1730740279967,-500.0,0.00036163,2]
[341281256,1730740279977,-500.0,0.00036163,2]
[341281257,1730740279987,-638.88,0.00036163,2]
[341281258,1730740279996,-500.0,0.00036163,2]
[341281259,1730740280006,-500.0,0.00036163,2]
[341281260,1730740280016,-151.0,0.00036163,7]
[341281261,1730740280025,-151.0,0.00036163,7]
[341281262,1730740280035,-195.282095,0.00036163,7]
[341281263,1730740280045,-500.0,0.00036163,2]
[341281264,1730740280054,-152.881748,0.00036163,7]
[341281265,1730740280064,-170.212558,0.00036163,7]
[341281266,1730740280073,-500.0,0.00036163,2]
[341281267,1730740280082,-500.0,0.00036163,2]
[341281268,1730740280092,-742.97,0.00036163,2]
[341281269,1730740280103,-500.0,0.00036163,2]
[341281270,1730740280116,-588.02,0.00036163,2]
[341281271,1730740280238,-684.77,0.00036163,2]
[341281272,1730740280248,-5190.93,0.00036163,2]
[341281273,1730740280258,-1333.28,0.00036163,2]
[341281274,1730740280268,-500.0,0.00036163,2]
[341281275,1730740280278,-500.0,0.00036163,2]
[341281276,1730740280288,-512.5,0.00036163,2]
[341281277,1730740280297,-2148.52,0.00036163,2]
[341281278,1730740280307,-500.0,0.00036163,2]
[341281279,1730740280316,-1134.55,0.00036163,2]
[341281280,1730740280326,-911.98,0.00036163,2]
[341281281,1730740280335,-500.0,0.00036163,2]
[341281282,1730740280344,-500.0,0.00036163,2]
[341281283,1730740280354,-500.0,0.00036163,2]
[341281284,1730740280363,-500.0,0.00036163,2]
[341281285,1730740280373,-500.0,0.00036164,2]
[341281286,1730740280383,-230.95393497,0.00036164,2]
[341281287,1730740280392,-500.0,0.00036164,2]
[341281288,1730740280401,-500.0,0.00036164,2]
[341281289,1730740280410,-623.99,0.00036164,2]
[341281290,1730740280420,-155.637596,0.00036164,2]
[341281291,1730740280431,-1022.37,0.00036164,2]
[341281292,1730740280441,-500.0,0.00036164,2]
[341281293,1730740280450,-185.989896,0.00036164,2]
[341281294,1730740280460,-500.0,0.00036164,2]
[341281295,1730740280469,-151.0,0.00036164,7]
[341281296,1730740280480,-2165.69,0.00036164,2]
[341281297,1730740280489,-157.913915,0.00036164,7]
[341281298,1730740280499,-649.19,0.00036164,2]
[341281299,1730740280508,-583.25,0.00036164,2]
[341281300,1730740280518,-610.43,0.00036164,2]
[341281301,1730740280528,-626.62,0.00036164,2]
[341281302,1730740280537,-500.0,0.00036164,2]
[341281303,1730740280547,-500.0,0.00036164,2]
[341281304,1730740280556,-973.83,0.00036164,2]
[341281305,1730740280566,-2718.58,0.00036164,2]
[341281306,1730740280575,-962.3,0.00036164,2]